[Event "FIDE World Rapid Chess Championship 2021"]
[White "Ponkratov, Pavel"]
[Black "Yuffa, Daniil"]
[WhiteFideId "4157800"]
[BlackFideId "24131423"]
[WhiteElo "2614"]
[BlackElo "2514"]
[Result "1-0"]
[Round "07"]
[TimeControl "900+10"]
[Date "2021.12.27"]
[WhiteClock "0:06:21"]
[BlackClock "0:02:19"]

1. e4 {[%clk 0:15:00]}  c6 {[%clk 0:15:00]} 2. d4 {[%clk 0:15:00]}  d5 {[%clk 0:15:00]} 3. e5 {[%clk 0:15:00]}  c5 {[%clk 0:15:00]} 4. dxc5 {[%clk 0:15:00]}  e6 {[%clk 0:15:00]} 5. Qg4 {[%clk 0:15:00]}  h5 {[%clk 0:15:00]} 6. Qg3 {[%clk 0:15:30]}  Ne7 {[%clk 0:15:11]} 7. Bd3 {[%clk 0:15:30]}  Nd7 {[%clk 0:15:11]} 8. Be3 {[%clk 0:15:30]}  h4 {[%clk 0:14:50]} 9. Qf4 {[%clk 0:15:04]}  Nc6 {[%clk 0:14:50]} 10. Nf3 {[%clk 0:15:04]}  Nxc5 {[%clk 0:14:50]} 11. O-O {[%clk 0:15:04]}  Nxd3 {[%clk 0:14:50]} 12. cxd3 {[%clk 0:15:04]}  Be7 {[%clk 0:14:50]} 13. Nc3 {[%clk 0:15:04]}  h3 {[%clk 0:12:07]} 14. g3 {[%clk 0:14:46]}  Rh5 {[%clk 0:12:07]} 15. d4 {[%clk 0:14:46]}  Qb6 {[%clk 0:12:07]} 16. Qg4 {[%clk 0:14:46]}  g6 {[%clk 0:12:07]} 17. Ne2 {[%clk 0:14:45]}  Bd7 {[%clk 0:10:25]} 18. Nf4 {[%clk 0:14:45]}  Rh7 {[%clk 0:10:25]} 19. Nxh3 {[%clk 0:14:45]}  O-O-O {[%clk 0:10:25]} 20. Nhg5 {[%clk 0:14:17]}  Rg7 {[%clk 0:09:02]} 21. b3 {[%clk 0:14:17]}  f6 {[%clk 0:09:02]} 22. exf6 {[%clk 0:14:17]}  Bxf6 {[%clk 0:09:02]} 23. Rac1 {[%clk 0:12:47]}  e5 {[%clk 0:09:02]} 24. Qh4 {[%clk 0:12:47]}  e4 {[%clk 0:09:02]} 25. Ne5 {[%clk 0:12:47]}  Bf5 {[%clk 0:07:10]} 26. Qf4 {[%clk 0:09:24]}  Qc7 {[%clk 0:06:20]} 27. b4 {[%clk 0:08:08]}  Bxe5 {[%clk 0:06:20]} 28. dxe5 {[%clk 0:08:08]}  d4 {[%clk 0:06:20]} 29. b5 {[%clk 0:08:08]}  dxe3 {[%clk 0:06:20]} 30. Qxe3 {[%clk 0:08:08]}  Rd3 {[%clk 0:06:20]} 31. Qf4 {[%clk 0:08:08]}  Qd7 {[%clk 0:03:59]} 32. bxc6 {[%clk 0:08:21]}  bxc6 {[%clk 0:03:59]} 33. Nxe4 {[%clk 0:08:25]}  Rd4 {[%clk 0:02:08]} 34. Nd6+ {[%clk 0:08:25]}  Qxd6 {[%clk 0:02:08]} 35. exd6 {[%clk 0:08:25]}  Rxf4 {[%clk 0:02:08]} 36. gxf4 {[%clk 0:08:25]}  Kd7 {[%clk 0:02:08]} 37. Rfd1 {[%clk 0:08:25]}  Rg8 {[%clk 0:02:08]} 38. Rc5 {[%clk 0:08:25]}  Be4 {[%clk 0:02:08]} 39. Ra5 {[%clk 0:08:25]}  Bd5 {[%clk 0:02:08]} 40. Rdxd5 {[%clk 0:08:25]}  cxd5 {[%clk 0:02:08]} 41. Rxd5 {[%clk 0:08:25]}  Rf8 {[%clk 0:02:08]} 42. Rd4 {[%clk 0:08:25]}  Rc8 {[%clk 0:02:08]} 43. Kg2 {[%clk 0:08:25]}  Rc3 {[%clk 0:02:08]} 44. a4 {[%clk 0:07:44]}  Ra3 {[%clk 0:02:30]} 45. f3 {[%clk 0:07:44]}  a5 {[%clk 0:02:30]} 46. Kg3 {[%clk 0:07:44]}  Ra1 {[%clk 0:02:30]} 47. h4 {[%clk 0:07:44]}  Rg1+ {[%clk 0:02:30]} 48. Kh2 {[%clk 0:07:44]}  Ra1 {[%clk 0:02:30]} 49. f5 {[%clk 0:07:44]}  gxf5 {[%clk 0:02:30]} 50. h5 {[%clk 0:07:44]}  Rb1 {[%clk 0:02:30]} 51. Rd5 {[%clk 0:07:44]}  Rb4 {[%clk 0:02:30]} 52. Rxa5 {[%clk 0:08:04]}  Rh4+ {[%clk 0:02:42]} 53. Kg3 {[%clk 0:08:04]}  Rxh5 {[%clk 0:02:42]} 54. Ra6 {[%clk 0:08:04]}  Ke6 {[%clk 0:02:42]} 55. Rb6 {[%clk 0:08:04]}  f4+ {[%clk 0:02:42]} 56. Kg4 {[%clk 0:08:04]}  Rc5 {[%clk 0:02:46]} 57. Rb4 {[%clk 0:05:56]}  Kxd6 {[%clk 0:02:46]} 58. Re4 {[%clk 0:05:56]}  Rc8 {[%clk 0:02:46]} 59. Kxf4 {[%clk 0:05:56]}  Rf8+ {[%clk 0:02:46]} 60. Ke3 {[%clk 0:05:56]}  Rb8 {[%clk 0:02:46]} 61. Rd4+ {[%clk 0:05:56]}  Kc5 {[%clk 0:01:48]} 62. f4 {[%clk 0:05:29]}  Rb1 {[%clk 0:01:48]} 63. Re4 {[%clk 0:05:29]}  Kd5 {[%clk 0:01:48]} 64. Re5+ {[%clk 0:05:29]}  Kd6 {[%clk 0:01:48]} 65. a5 {[%clk 0:05:29]}  Rb8 {[%clk 0:01:48]} 66. Ke4 {[%clk 0:05:29]}  Rb7 {[%clk 0:01:48]} 67. Rd5+ {[%clk 0:05:29]}  Kc6 {[%clk 0:01:48]} 68. Rd4 {[%clk 0:05:29]}  Re7+ {[%clk 0:01:48]} 69. Kf5 {[%clk 0:05:29]}  Re8 {[%clk 0:01:48]} 70. Kg6 {[%clk 0:05:29]}  Rg8+ {[%clk 0:01:48]} 71. Kf7 {[%clk 0:05:29]}  Rg4 {[%clk 0:01:48]} 72. a6 {[%clk 0:05:29]}  Kb6 {[%clk 0:01:48]} 73. Ra4 {[%clk 0:05:29]}  Ka7 {[%clk 0:02:19]} 74. Ke6 {[%clk 0:06:21]}  Rh4 {[%clk 0:02:19]} 75. Kf6 {[%clk 0:06:21]}  Rg4 {[%clk 0:02:19]} 76. Ke5 {[%clk 0:06:21]}  Rh4 {[%clk 0:02:19]} 77. Ra1 {[%clk 0:06:21]} 1-0


[Site "http://www.Chess.com"]

[Event "FIDE World Rapid Chess Championship 2021"]
[White "Sanal, Vahap"]
[Black "Adly, Ahmed"]
[WhiteFideId "6300545"]
[BlackFideId "10601619"]
[WhiteElo "2509"]
[BlackElo "2597"]
[Result "1-0"]
[Round "07"]
[TimeControl "900+10"]
[Date "2021.12.27"]
[WhiteClock "0:01:28"]
[BlackClock "0:00:01"]

1. e4 {[%clk 0:15:00]}  c5 {[%clk 0:15:00]} 2. Nc3 {[%clk 0:15:00]}  d6 {[%clk 0:15:00]} 3. Nf3 {[%clk 0:15:00]}  Nc6 {[%clk 0:15:00]} 4. d4 {[%clk 0:15:00]}  cxd4 {[%clk 0:15:00]} 5. Nxd4 {[%clk 0:15:00]}  Nf6 {[%clk 0:15:00]} 6. Bg5 {[%clk 0:15:00]}  Bd7 {[%clk 0:15:00]} 7. Qd2 {[%clk 0:15:00]}  Rc8 {[%clk 0:15:53]} 8. O-O-O {[%clk 0:15:51]}  Nxd4 {[%clk 0:15:53]} 9. Qxd4 {[%clk 0:15:51]}  Qa5 {[%clk 0:15:53]} 10. Bxf6 {[%clk 0:15:51]}  gxf6 {[%clk 0:15:53]} 11. f4 {[%clk 0:15:51]}  Qc5 {[%clk 0:15:53]} 12. Qd3 {[%clk 0:15:51]}  e6 {[%clk 0:15:53]} 13. Kb1 {[%clk 0:15:51]}  a6 {[%clk 0:15:10]} 14. g3 {[%clk 0:14:57]}  h5 {[%clk 0:15:10]} 15. h4 {[%clk 0:14:57]}  Rg8 {[%clk 0:15:10]} 16. Bh3 {[%clk 0:14:31]}  b5 {[%clk 0:13:35]} 17. Ne2 {[%clk 0:14:31]}  b4 {[%clk 0:13:35]} 18. Nd4 {[%clk 0:14:31]}  a5 {[%clk 0:13:35]} 19. Rhe1 {[%clk 0:13:46]}  a4 {[%clk 0:12:07]} 20. e5 {[%clk 0:13:46]}  fxe5 {[%clk 0:12:07]} 21. fxe5 {[%clk 0:13:46]}  d5 {[%clk 0:12:07]} 22. Rf1 {[%clk 0:13:13]}  Rg7 {[%clk 0:10:47]} 23. Qf3 {[%clk 0:12:28]}  a3 {[%clk 0:08:31]} 24. Qxh5 {[%clk 0:12:28]}  b3 {[%clk 0:07:14]} 25. cxb3 {[%clk 0:08:13]}  axb2 {[%clk 0:04:27]} 26. Qf3 {[%clk 0:08:13]}  Qa3 {[%clk 0:04:42]} 27. Nc2 {[%clk 0:05:27]}  Rxc2 {[%clk 0:04:42]} 28. Kxc2 {[%clk 0:05:27]}  Qxa2 {[%clk 0:03:35]} 29. Rb1 {[%clk 0:04:13]}  Bb5 {[%clk 0:03:35]} 30. Qc3 {[%clk 0:04:21]}  Qa6 {[%clk 0:00:47]} 31. Rf4 {[%clk 0:04:21]}  Ba3 {[%clk 0:00:47]} 32. Bf1 {[%clk 0:04:21]}  Bxf1 {[%clk 0:00:31]} 33. Rbxf1 {[%clk 0:02:16]}  Kd8 {[%clk 0:00:31]} 34. Re1 {[%clk 0:02:16]}  f5 {[%clk 0:00:31]} 35. Ra4 {[%clk 0:02:16]}  Qb7 {[%clk 0:00:31]} 36. Rd1 {[%clk 0:01:36]}  Rc7 {[%clk 0:00:01]} 37. Rc4 {[%clk 0:01:36]}  Rxc4 {[%clk 0:00:01]} 38. bxc4 {[%clk 0:01:36]}  Bb4 {[%clk 0:00:01]} 39. Qxb2 {[%clk 0:01:36]}  Qb6 {[%clk 0:00:01]} 40. cxd5 {[%clk 0:01:36]}  Ke8 {[%clk 0:00:01]} 41. Kb1 {[%clk 0:01:36]}  Qa5 {[%clk 0:00:01]} 42. dxe6 {[%clk 0:01:36]}  Qb5 {[%clk 0:00:01]} 43. Qb3 {[%clk 0:01:36]}  Ke7 {[%clk 0:00:01]} 44. Qd3 {[%clk 0:01:28]} 1-0


[Site "http://www.Chess.com"]

[Event "FIDE World Rapid Chess Championship 2021"]
[White "Nihal, Sarin"]
[Black "Quparadze, Giga"]
[WhiteFideId "25092340"]
[BlackFideId "13602250"]
[WhiteElo "2500"]
[BlackElo "2583"]
[Result "1/2-1/2"]
[Round "07"]
[TimeControl "900+10"]
[Date "2021.12.27"]
[WhiteClock "0:01:38"]
[BlackClock "0:08:04"]

1. d4 {[%clk 0:15:00]}  Nf6 {[%clk 0:15:00]} 2. Nf3 {[%clk 0:15:00]}  e6 {[%clk 0:15:00]} 3. e3 {[%clk 0:15:00]}  c5 {[%clk 0:15:00]} 4. Bd3 {[%clk 0:15:00]}  d5 {[%clk 0:15:00]} 5. O-O {[%clk 0:15:00]}  Nbd7 {[%clk 0:15:00]} 6. c3 {[%clk 0:15:53]}  g6 {[%clk 0:16:34]} 7. Nbd2 {[%clk 0:15:53]}  Bg7 {[%clk 0:16:34]} 8. e4 {[%clk 0:15:53]}  dxe4 {[%clk 0:16:34]} 9. Nxe4 {[%clk 0:15:53]}  Nxe4 {[%clk 0:16:34]} 10. Bxe4 {[%clk 0:15:53]}  cxd4 {[%clk 0:16:34]} 11. Nxd4 {[%clk 0:15:53]}  O-O {[%clk 0:16:34]} 12. Re1 {[%clk 0:15:53]}  Nf6 {[%clk 0:16:34]} 13. Bf3 {[%clk 0:15:53]}  a6 {[%clk 0:16:34]} 14. Bf4 {[%clk 0:15:53]}  Nd5 {[%clk 0:16:34]} 15. Bg3 {[%clk 0:15:53]}  Qb6 {[%clk 0:16:34]} 16. Bxd5 {[%clk 0:15:53]}  exd5 {[%clk 0:16:34]} 17. Qd2 {[%clk 0:15:53]}  Bd7 {[%clk 0:16:34]} 18. Be5 {[%clk 0:15:53]}  f6 {[%clk 0:16:34]} 19. Bg3 {[%clk 0:15:53]}  Rae8 {[%clk 0:16:34]} 20. f3 {[%clk 0:15:53]}  Rxe1+ {[%clk 0:16:34]} 21. Rxe1 {[%clk 0:15:53]}  Re8 {[%clk 0:16:34]} 22. Rxe8+ {[%clk 0:15:37]}  Bxe8 {[%clk 0:17:31]} 23. Bf2 {[%clk 0:15:37]}  Qd6 {[%clk 0:17:31]} 24. Nb3 {[%clk 0:15:37]}  Bf7 {[%clk 0:17:31]} 25. Bd4 {[%clk 0:15:37]}  h5 {[%clk 0:17:31]} 26. Nc5 {[%clk 0:15:37]}  b5 {[%clk 0:17:31]} 27. Nd3 {[%clk 0:15:37]}  Kh7 {[%clk 0:17:31]} 28. Qf4 {[%clk 0:15:37]}  Qe6 {[%clk 0:17:31]} 29. Kf2 {[%clk 0:15:37]}  g5 {[%clk 0:17:31]} 30. Qd2 {[%clk 0:15:05]}  Qd6 {[%clk 0:17:24]} 31. Kg1 {[%clk 0:14:01]}  h4 {[%clk 0:16:05]} 32. h3 {[%clk 0:14:01]}  Bg6 {[%clk 0:16:05]} 33. Nc5 {[%clk 0:14:01]}  a5 {[%clk 0:16:05]} 34. Qe2 {[%clk 0:12:43]}  b4 {[%clk 0:15:09]} 35. cxb4 {[%clk 0:12:43]}  axb4 {[%clk 0:15:09]} 36. Ne6 {[%clk 0:12:43]}  Bf5 {[%clk 0:15:09]} 37. Nxg7 {[%clk 0:12:43]}  Kxg7 {[%clk 0:15:09]} 38. Kh1 {[%clk 0:11:45]}  Kf7 {[%clk 0:14:33]} 39. Qb5 {[%clk 0:11:45]}  Bd7 {[%clk 0:13:54]} 40. Qb7 {[%clk 0:07:13]}  Kg6 {[%clk 0:13:54]} 41. a3 {[%clk 0:07:22]}  bxa3 {[%clk 0:11:45]} 42. bxa3 {[%clk 0:07:22]}  Qe6 {[%clk 0:11:45]} 43. Qb1+ {[%clk 0:07:22]}  Qf5 {[%clk 0:11:45]} 44. Qd1 {[%clk 0:07:22]}  Qe6 {[%clk 0:11:45]} 45. a4 {[%clk 0:05:12]}  Qa6 {[%clk 0:11:11]} 46. Qb1+ {[%clk 0:05:12]}  Kg7 {[%clk 0:11:11]} 47. Qe1 {[%clk 0:05:12]}  Bxa4 {[%clk 0:11:11]} 48. f4 {[%clk 0:03:03]}  Kg6 {[%clk 0:11:14]} 49. fxg5 {[%clk 0:03:03]}  fxg5 {[%clk 0:11:14]} 50. Qb1+ {[%clk 0:03:03]}  Kh6 {[%clk 0:10:27]} 51. Qf5 {[%clk 0:01:35]}  Qg6 {[%clk 0:10:27]} 52. Qf8+ {[%clk 0:01:35]}  Kh5 {[%clk 0:10:27]} 53. Qh8+ {[%clk 0:01:35]}  Qh6 {[%clk 0:10:27]} 54. Qc8 {[%clk 0:01:35]}  Qc6 {[%clk 0:08:41]} 55. Qg4+ {[%clk 0:01:54]}  Kg6 {[%clk 0:08:41]} 56. Be3 {[%clk 0:01:54]}  Bc2 {[%clk 0:08:41]} 57. Qxg5+ {[%clk 0:01:54]}  Kf7 {[%clk 0:08:41]} 58. Qxh4 {[%clk 0:01:54]}  Be4 {[%clk 0:08:41]} 59. Kg1 {[%clk 0:01:54]}  Qg6 {[%clk 0:08:41]} 60. Qf2+ {[%clk 0:01:38]}  Qf5 {[%clk 0:08:04]} 61. g4 {[%clk 0:01:38]}  Qxf2+ {[%clk 0:08:04]} 62. Kxf2 {[%clk 0:01:38]}  d4 {[%clk 0:08:04]} 63. Bxd4 {[%clk 0:01:38]}  Bc6 {[%clk 0:08:04]} 64. Kg3 {[%clk 0:01:38]}  Kg6 {[%clk 0:08:04]} 65. h4 {[%clk 0:01:38]}  Bd7 {[%clk 0:08:04]} 66. h5+ {[%clk 0:01:38]}  Kh7 {[%clk 0:08:04]} 67. Kf4 {[%clk 0:01:38]}  Be6 {[%clk 0:08:04]} 68. Bc3 {[%clk 0:01:38]}  Bd7 {[%clk 0:08:04]} 69. Kg5 {[%clk 0:01:38]}  Be6 {[%clk 0:08:04]} 70. Kh4 {[%clk 0:01:38]}  Bd7 {[%clk 0:08:04]} 71. g5 {[%clk 0:01:38]}  Be8 {[%clk 0:08:04]} 72. g6+ {[%clk 0:01:38]}  Bxg6 {[%clk 0:08:04]} 73. hxg6+ {[%clk 0:01:38]}  Kxg6 {[%clk 0:08:04]} 1/2-1/2


[Site "http://www.Chess.com"]

[Event "FIDE World Rapid Chess Championship 2021"]
[White "Gajewski, Grzegorz"]
[Black "Bluebaum, Matthias"]
[WhiteFideId "1116207"]
[BlackFideId "24651516"]
[WhiteElo "2496"]
[BlackElo "2575"]
[Result "0-1"]
[Round "07"]
[TimeControl "900+10"]
[Date "2021.12.27"]
[WhiteClock "0:00:38"]
[BlackClock "0:04:27"]

1. d4 {[%clk 0:15:00]}  d5 {[%clk 0:15:00]} 2. Nf3 {[%clk 0:15:00]}  Nf6 {[%clk 0:15:00]} 3. Bf4 {[%clk 0:15:00]}  c5 {[%clk 0:15:00]} 4. e3 {[%clk 0:15:00]}  Nc6 {[%clk 0:15:00]} 5. Nbd2 {[%clk 0:15:00]}  cxd4 {[%clk 0:15:00]} 6. exd4 {[%clk 0:15:00]}  Qb6 {[%clk 0:15:00]} 7. Nb3 {[%clk 0:15:00]}  Bf5 {[%clk 0:15:00]} 8. c3 {[%clk 0:15:45]}  e6 {[%clk 0:16:12]} 9. Be2 {[%clk 0:15:45]}  Be7 {[%clk 0:16:12]} 10. O-O {[%clk 0:15:45]}  O-O {[%clk 0:16:12]} 11. Nh4 {[%clk 0:15:45]}  Be4 {[%clk 0:16:12]} 12. f3 {[%clk 0:15:45]}  Bg6 {[%clk 0:16:12]} 13. Nxg6 {[%clk 0:15:45]}  hxg6 {[%clk 0:16:12]} 14. Bd3 {[%clk 0:13:32]}  e5 {[%clk 0:16:36]} 15. Be3 {[%clk 0:13:32]}  exd4 {[%clk 0:16:36]} 16. cxd4 {[%clk 0:13:32]}  Ne5 {[%clk 0:16:36]} 17. Rc1 {[%clk 0:13:27]}  Rac8 {[%clk 0:15:27]} 18. Rxc8 {[%clk 0:13:27]}  Rxc8 {[%clk 0:15:27]} 19. Bb1 {[%clk 0:13:27]}  Nc4 {[%clk 0:14:59]} 20. Bc1 {[%clk 0:11:06]}  a5 {[%clk 0:14:59]} 21. Re1 {[%clk 0:11:06]}  Bb4 {[%clk 0:14:59]} 22. Re2 {[%clk 0:11:06]}  a4 {[%clk 0:14:39]} 23. Na1 {[%clk 0:09:58]}  Bc3 {[%clk 0:14:39]} 24. Nb3 {[%clk 0:10:07]}  axb3 {[%clk 0:13:32]} 25. bxc3 {[%clk 0:06:53]}  b2 {[%clk 0:13:32]} 26. Bg5 {[%clk 0:07:01]}  Re8 {[%clk 0:09:48]} 27. Rf2 {[%clk 0:07:01]}  Na3 {[%clk 0:09:33]} 28. Bd2 {[%clk 0:04:00]}  Nd7 {[%clk 0:09:33]} 29. g3 {[%clk 0:04:00]}  Qb5 {[%clk 0:09:33]} 30. Kg2 {[%clk 0:03:15]}  Nb6 {[%clk 0:05:49]} 31. Bf4 {[%clk 0:03:15]}  Nbc4 {[%clk 0:05:49]} 32. h4 {[%clk 0:01:59]}  Nxb1 {[%clk 0:04:37]} 33. Qxb1 {[%clk 0:01:59]}  Re1 {[%clk 0:04:37]} 34. Qxe1 {[%clk 0:01:59]}  b1=Q {[%clk 0:04:37]} 35. Qe7 {[%clk 0:01:59]}  Qf5 {[%clk 0:04:27]} 36. Re2 {[%clk 0:00:38]}  Qfd7 {[%clk 0:04:27]} 37. Qg5 {[%clk 0:00:38]}  Qbc6 {[%clk 0:04:27]} 0-1


[Site "http://www.Chess.com"]

[Event "FIDE World Rapid Chess Championship 2021"]
[White "Sadhwani, Raunak"]
[Black "Ghaem Maghami, Ehsan"]
[WhiteFideId "35093487"]
[BlackFideId "12500739"]
[WhiteElo "2454"]
[BlackElo "2553"]
[Result "0-1"]
[Round "07"]
[TimeControl "900+10"]
[Date "2021.12.27"]
[WhiteClock "0:00:55"]
[BlackClock "0:00:38"]

1. c4 {[%clk 0:15:00]}  Nf6 {[%clk 0:15:00]} 2. Nc3 {[%clk 0:15:00]}  e5 {[%clk 0:14:21]} 3. Nf3 {[%clk 0:15:35]}  Nc6 {[%clk 0:14:21]} 4. e4 {[%clk 0:15:35]}  Bb4 {[%clk 0:14:21]} 5. d3 {[%clk 0:15:35]}  d6 {[%clk 0:14:21]} 6. a3 {[%clk 0:15:35]}  Bc5 {[%clk 0:14:21]} 7. b4 {[%clk 0:15:35]}  Bd4 {[%clk 0:14:21]} 8. Bb2 {[%clk 0:15:53]}  Bg4 {[%clk 0:14:09]} 9. Be2 {[%clk 0:15:53]}  Bxf3 {[%clk 0:14:09]} 10. Bxf3 {[%clk 0:15:53]}  a5 {[%clk 0:14:09]} 11. b5 {[%clk 0:15:53]}  Nb8 {[%clk 0:14:09]} 12. Qc2 {[%clk 0:15:53]}  Nbd7 {[%clk 0:13:16]} 13. O-O {[%clk 0:13:18]}  Nc5 {[%clk 0:13:16]} 14. Rad1 {[%clk 0:13:18]}  O-O {[%clk 0:13:16]} 15. g3 {[%clk 0:13:18]}  a4 {[%clk 0:13:16]} 16. Ne2 {[%clk 0:12:41]}  Bxb2 {[%clk 0:12:13]} 17. Qxb2 {[%clk 0:12:41]}  Re8 {[%clk 0:12:13]} 18. Bg2 {[%clk 0:12:41]}  Nb3 {[%clk 0:12:17]} 19. Nc3 {[%clk 0:10:14]}  c6 {[%clk 0:09:34]} 20. Rb1 {[%clk 0:07:03]}  Nd7 {[%clk 0:07:48]} 21. f4 {[%clk 0:06:16]}  Ndc5 {[%clk 0:06:09]} 22. Rbd1 {[%clk 0:05:04]}  Qf6 {[%clk 0:06:09]} 23. f5 {[%clk 0:05:04]}  Qh6 {[%clk 0:06:09]} 24. Qf2 {[%clk 0:04:02]}  Nd4 {[%clk 0:02:30]} 25. h4 {[%clk 0:04:02]}  Rf8 {[%clk 0:02:30]} 26. Bh3 {[%clk 0:04:02]}  Kh8 {[%clk 0:02:30]} 27. Kg2 {[%clk 0:02:45]}  g5 {[%clk 0:01:49]} 28. Bg4 {[%clk 0:02:45]}  gxh4 {[%clk 0:01:49]} 29. gxh4 {[%clk 0:02:45]}  Rg8 {[%clk 0:01:49]} 30. Kh3 {[%clk 0:02:45]}  f6 {[%clk 0:00:51]} 31. Rg1 {[%clk 0:02:26]}  Rg7 {[%clk 0:00:51]} 32. bxc6 {[%clk 0:02:26]}  bxc6 {[%clk 0:00:51]} 33. Ne2 {[%clk 0:02:26]}  Nxe2 {[%clk 0:00:51]} 34. Bxe2 {[%clk 0:02:26]}  Rag8 {[%clk 0:00:51]} 35. Rxg7 {[%clk 0:02:26]}  Qxg7 {[%clk 0:00:43]} 36. Kh2 {[%clk 0:01:07]}  Qh6 {[%clk 0:00:43]} 37. Rg1 {[%clk 0:01:07]}  Rxg1 {[%clk 0:00:43]} 38. Kxg1 {[%clk 0:01:07]}  Qc1+ {[%clk 0:00:43]} 39. Kh2 {[%clk 0:01:07]}  Qxa3 {[%clk 0:00:43]} 40. Qf3 {[%clk 0:01:07]}  Qb2 {[%clk 0:00:43]} 41. Qh5 {[%clk 0:01:07]}  Kg7 {[%clk 0:00:43]} 42. Kg3 {[%clk 0:01:07]}  Qb8 {[%clk 0:00:43]} 43. Qg4+ {[%clk 0:00:46]}  Kh8 {[%clk 0:00:44]} 44. Qh5 {[%clk 0:00:46]}  Qg8+ {[%clk 0:00:44]} 45. Kh3 {[%clk 0:00:46]}  a3 {[%clk 0:00:44]} 46. Qh6 {[%clk 0:00:46]}  Nd7 {[%clk 0:00:44]} 47. Qd2 {[%clk 0:00:46]}  Qa8 {[%clk 0:00:44]} 48. Qa2 {[%clk 0:00:46]}  Nc5 {[%clk 0:00:44]} 49. h5 {[%clk 0:00:46]}  Nb3 {[%clk 0:00:44]} 50. c5 {[%clk 0:00:46]}  d5 {[%clk 0:00:44]} 51. exd5 {[%clk 0:00:46]}  Nc1 {[%clk 0:00:44]} 52. Qd2 {[%clk 0:00:46]}  Nxe2 {[%clk 0:00:38]} 53. Qh6 {[%clk 0:00:55]}  Nf4+ {[%clk 0:00:38]} 54. Kh4 {[%clk 0:00:55]}  Nxd5 {[%clk 0:00:38]} 0-1


[Site "http://www.Chess.com"]

[Event "FIDE World Rapid Chess Championship 2021"]
[White "Kozak, Adam"]
[Black "Kantor, Gergely"]
[WhiteFideId "753246"]
[BlackFideId "751499"]
[WhiteElo "2552"]
[BlackElo "2454"]
[Result "0-1"]
[Round "07"]
[TimeControl "900+10"]
[Date "2021.12.27"]
[WhiteClock "0:00:20"]
[BlackClock "0:00:47"]

1. e4 {[%clk 0:15:00]}  e5 {[%clk 0:15:00]} 2. Nf3 {[%clk 0:15:00]}  Nc6 {[%clk 0:15:00]} 3. Bb5 {[%clk 0:15:00]}  a6 {[%clk 0:15:00]} 4. Ba4 {[%clk 0:15:00]}  Nf6 {[%clk 0:15:00]} 5. Bxc6 {[%clk 0:15:00]}  dxc6 {[%clk 0:15:00]} 6. d3 {[%clk 0:15:00]}  Bd6 {[%clk 0:15:21]} 7. Nc3 {[%clk 0:15:57]}  Qe7 {[%clk 0:15:21]} 8. h3 {[%clk 0:15:57]}  Be6 {[%clk 0:15:21]} 9. Be3 {[%clk 0:15:57]}  h6 {[%clk 0:15:21]} 10. a3 {[%clk 0:15:13]}  c5 {[%clk 0:14:01]} 11. b3 {[%clk 0:12:18]}  O-O-O {[%clk 0:14:01]} 12. Nd2 {[%clk 0:12:18]}  g5 {[%clk 0:14:01]} 13. Nc4 {[%clk 0:12:18]}  Rhg8 {[%clk 0:12:18]} 14. Qd2 {[%clk 0:11:45]}  Rg6 {[%clk 0:11:23]} 15. Nxd6+ {[%clk 0:11:45]}  Qxd6 {[%clk 0:09:57]} 16. a4 {[%clk 0:08:54]}  Nh5 {[%clk 0:09:33]} 17. g3 {[%clk 0:08:14]}  Nf4 {[%clk 0:07:33]} 18. h4 {[%clk 0:05:58]}  Bg4 {[%clk 0:07:33]} 19. hxg5 {[%clk 0:06:06]}  hxg5 {[%clk 0:05:47]} 20. gxf4 {[%clk 0:06:06]}  gxf4 {[%clk 0:05:47]} 21. Nd5 {[%clk 0:06:06]}  fxe3 {[%clk 0:05:23]} 22. Qxe3 {[%clk 0:03:31]}  f5 {[%clk 0:05:23]} 23. Kd2 {[%clk 0:03:30]}  f4 {[%clk 0:03:18]} 24. Qe1 {[%clk 0:00:50]}  Be6 {[%clk 0:03:18]} 25. Nc3 {[%clk 0:00:50]}  Qd4 {[%clk 0:03:18]} 26. Kc1 {[%clk 0:00:50]}  Rg2 {[%clk 0:01:40]} 27. Rf1 {[%clk 0:00:19]}  Rh8 {[%clk 0:01:40]} 28. Rb1 {[%clk 0:00:19]}  Rhh2 {[%clk 0:01:40]} 29. Ne2 {[%clk 0:00:19]}  Qb4 {[%clk 0:01:40]} 30. Qc3 {[%clk 0:00:19]}  Qxc3 {[%clk 0:01:40]} 31. Nxc3 {[%clk 0:00:19]}  Rxf2 {[%clk 0:01:40]} 32. Rxf2 {[%clk 0:00:19]}  Rxf2 {[%clk 0:01:40]} 33. Kb2 {[%clk 0:00:19]}  f3 {[%clk 0:01:40]} 34. Rh1 {[%clk 0:00:25]}  Rd2 {[%clk 0:00:49]} 35. Rh8+ {[%clk 0:00:25]}  Kd7 {[%clk 0:00:49]} 36. Rf8 {[%clk 0:00:25]}  Rf2 {[%clk 0:00:49]} 37. Nd1 {[%clk 0:00:25]}  Rf1 {[%clk 0:00:49]} 38. Ne3 {[%clk 0:00:25]}  Ke7 {[%clk 0:00:49]} 39. Rh8 {[%clk 0:00:25]}  Re1 {[%clk 0:00:49]} 40. Rh7+ {[%clk 0:00:25]}  Kd6 {[%clk 0:00:49]} 41. Nf5+ {[%clk 0:00:25]}  Bxf5 {[%clk 0:00:47]} 42. Rh6+ {[%clk 0:00:20]} 0-1


[Site "http://www.Chess.com"]

[Event "FIDE World Rapid Chess Championship 2021"]
[White "Piorun, Kacper"]
[Black "Teclaf, Pawel"]
[WhiteFideId "1130420"]
[BlackFideId "1185934"]
[WhiteElo "2547"]
[BlackElo "2345"]
[Result "1/2-1/2"]
[Round "07"]
[TimeControl "900+10"]
[Date "2021.12.27"]
[WhiteClock "0:02:55"]
[BlackClock "0:03:42"]

1. e4 {[%clk 0:15:00]}  c5 {[%clk 0:15:00]} 2. Nf3 {[%clk 0:15:00]}  e6 {[%clk 0:15:00]} 3. g3 {[%clk 0:15:00]}  Nc6 {[%clk 0:15:00]} 4. Bg2 {[%clk 0:15:00]}  Nf6 {[%clk 0:15:07]} 5. d3 {[%clk 0:15:35]}  Be7 {[%clk 0:15:07]} 6. O-O {[%clk 0:15:35]}  O-O {[%clk 0:15:07]} 7. Re1 {[%clk 0:15:35]}  d6 {[%clk 0:15:07]} 8. d4 {[%clk 0:15:35]}  cxd4 {[%clk 0:15:07]} 9. Nxd4 {[%clk 0:15:35]}  Bd7 {[%clk 0:13:24]} 10. Nc3 {[%clk 0:15:22]}  Nxd4 {[%clk 0:13:24]} 11. Qxd4 {[%clk 0:15:22]}  Bc6 {[%clk 0:13:24]} 12. a4 {[%clk 0:15:22]}  d5 {[%clk 0:12:09]} 13. exd5 {[%clk 0:14:56]}  Nxd5 {[%clk 0:12:09]} 14. Nxd5 {[%clk 0:14:56]}  Bxd5 {[%clk 0:12:09]} 15. Bxd5 {[%clk 0:14:56]}  Bf6 {[%clk 0:12:09]} 16. Qb4 {[%clk 0:14:13]}  Qxd5 {[%clk 0:10:52]} 17. Ra3 {[%clk 0:14:13]}  Qc6 {[%clk 0:10:58]} 18. Qe4 {[%clk 0:11:48]}  Rac8 {[%clk 0:08:04]} 19. Qxc6 {[%clk 0:11:14]}  Rxc6 {[%clk 0:06:26]} 20. c3 {[%clk 0:11:14]}  Rd8 {[%clk 0:06:26]} 21. Be3 {[%clk 0:11:14]}  a6 {[%clk 0:06:26]} 22. Rb3 {[%clk 0:11:14]}  Rd7 {[%clk 0:06:26]} 23. Kf1 {[%clk 0:11:14]}  Rc4 {[%clk 0:06:26]} 24. Ra1 {[%clk 0:11:14]}  Kf8 {[%clk 0:06:26]} 25. Ke2 {[%clk 0:11:14]}  Ke8 {[%clk 0:06:26]} 26. Rd1 {[%clk 0:09:58]}  Rxd1 {[%clk 0:06:05]} 27. Kxd1 {[%clk 0:09:58]}  Rc7 {[%clk 0:06:05]} 28. Ke2 {[%clk 0:09:58]}  Be7 {[%clk 0:06:05]} 29. g4 {[%clk 0:09:11]}  Kd7 {[%clk 0:05:35]} 30. Kd3 {[%clk 0:09:11]}  Kc8 {[%clk 0:04:53]} 31. Bb6 {[%clk 0:06:52]}  Rd7+ {[%clk 0:04:53]} 32. Ke2 {[%clk 0:06:52]}  h5 {[%clk 0:04:53]} 33. h3 {[%clk 0:06:52]}  Rd5 {[%clk 0:03:47]} 34. c4 {[%clk 0:06:09]}  Re5+ {[%clk 0:03:47]} 35. Re3 {[%clk 0:06:09]}  Rxe3+ {[%clk 0:03:47]} 36. Kxe3 {[%clk 0:06:09]}  hxg4 {[%clk 0:03:47]} 37. hxg4 {[%clk 0:06:09]}  Kd7 {[%clk 0:03:42]} 38. Bd4 {[%clk 0:04:49]}  g6 {[%clk 0:03:42]} 39. Ke4 {[%clk 0:02:55]} 1/2-1/2


[Site "http://www.Chess.com"]